Workbook

Sheet Бюджет свадьбы
B2: МАРТА + ИГОРЬ СОЕДИНЯЮТСЯ УЗАМИ БРАКА
B5: КАТЕГОРИЯ | C5: ЗАПЛАНИРОВАННЫЕ ЗАТРАТЫ | D5: ФАКТИЧЕСКИЕ ЗАТРАТЫ | E5: ОТКЛОНЕНИЕ | F5: % БЮДЖЕТА | J5: Без сортировки | K5: Предполагаемые затраты | L5: Фактические затраты | M5: Расчетные затраты — значение ранга | N5: Ранг | O5: № | P5: Сортировка
B6: =P6 -> Прием | C6: =VLOOKUP(TBL_Summary[[#This Row],[КАТЕГОРИЯ]],TBL_RankingData,2,FALSE) -> 14,500.00 ₽ | D6: =IF(VLOOKUP(TBL_Summary[[#This Row],[КАТЕГОРИЯ]],TBL_RankingData,3,FALSE)=0,"",VLOOKUP(TBL_Summary[[#This Row],[КАТЕГОРИЯ]],TBL_RankingData,3,FALSE)) -> 12,800.00 ₽ | E6: =IF(OR(TBL_Summary[[#This Row],[ЗАПЛАНИРОВАННЫЕ ЗАТРАТЫ]]="",TBL_Summary[[#This Row],[ФАКТИЧЕСКИЕ ЗАТРАТЫ]]=""),"",TBL_Summary[[#This Row],[ЗАПЛАНИРОВАННЫЕ ЗАТРАТЫ]]-TBL_Summary[[#This Row],[ФАКТИЧЕСКИЕ ЗАТРАТЫ]]) -> 1,700.00 ₽ | F6: =TBL_Summary[[#This Row],[ЗАПЛАНИРОВАННЫЕ ЗАТРАТЫ]]/SUM(TBL_Summary[ЗАПЛАНИРОВАННЫЕ ЗАТРАТЫ]) -> 48.7% | J6: Прием | K6: =TBL_Reception[[#Totals],[ЗАПЛАНИРОВАННЫЕ]] -> 14500 | L6: =TBL_Reception[[#Totals],[ФАКТИЧЕСКИЕ]] -> 12800 | M6: =K6-O6/100 -> 14499.99 | N6: =_xlfn.RANK.AVG(M6,$M$6:$M$15) -> 1 | O6: 1 | P6: =INDEX(TBL_RankingData,MATCH(O6,$N$6:$N$15,0),1) -> Прием
B7: =P7 -> Одежда | C7: =VLOOKUP(TBL_Summary[[#This Row],[КАТЕГОРИЯ]],TBL_RankingData,2,FALSE) -> 4,000.00 ₽ | D7: =IF(VLOOKUP(TBL_Summary[[#This Row],[КАТЕГОРИЯ]],TBL_RankingData,3,FALSE)=0,"",VLOOKUP(TBL_Summary[[#This Row],[КАТЕГОРИЯ]],TBL_RankingData,3,FALSE)) -> 2,900.00 ₽ | E7: =IF(OR(TBL_Summary[[#This Row],[ЗАПЛАНИРОВАННЫЕ ЗАТРАТЫ]]="",TBL_Summary[[#This Row],[ФАКТИЧЕСКИЕ ЗАТРАТЫ]]=""),"",TBL_Summary[[#This Row],[ЗАПЛАНИРОВАННЫЕ ЗАТРАТЫ]]-TBL_Summary[[#This Row],[ФАКТИЧЕСКИЕ ЗАТРАТЫ]]) -> 1,100.00 ₽ | F7: =TBL_Summary[[#This Row],[ЗАПЛАНИРОВАННЫЕ ЗАТРАТЫ]]/SUM(TBL_Summary[ЗАПЛАНИРОВАННЫЕ ЗАТРАТЫ]) -> 13.4% | J7: Одежда | K7: =TBL_Attire[[#Totals],[ЗАПЛАНИРОВАННЫЕ]] -> 4000 | L7: =TBL_Attire[[#Totals],[ФАКТИЧЕСКИЕ]] -> 2900 | M7: =K7-O7/100 -> 3999.98 | N7: 2 | O7: 2 | P7: Одежда
B8: Цветы и оформление | C8: =VLOOKUP(TBL_Summary[[#This Row],[КАТЕГОРИЯ]],TBL_RankingData,2,FALSE) -> 3,000.00 ₽ | D8: =IF(VLOOKUP(TBL_Summary[[#This Row],[КАТЕГОРИЯ]],TBL_RankingData,3,FALSE)=0,"",VLOOKUP(TBL_Summary[[#This Row],[КАТЕГОРИЯ]],TBL_RankingData,3,FALSE)) ->  | E8: =IF(OR(TBL_Summary[[#This Row],[ЗАПЛАНИРОВАННЫЕ ЗАТРАТЫ]]="",TBL_Summary[[#This Row],[ФАКТИЧЕСКИЕ ЗАТРАТЫ]]=""),"",TBL_Summary[[#This Row],[ЗАПЛАНИРОВАННЫЕ ЗАТРАТЫ]]-TBL_Summary[[#This Row],[ФАКТИЧЕСКИЕ ЗАТРАТЫ]]) ->  | F8: =TBL_Summary[[#This Row],[ЗАПЛАНИРОВАННЫЕ ЗАТРАТЫ]]/SUM(TBL_Summary[ЗАПЛАНИРОВАННЫЕ ЗАТРАТЫ]) -> 10.1% | J8: Цветы и оформление | K8: =TBL_FlowersAndDecor[[#Totals],[ЗАПЛАНИРОВАННЫЕ]] -> 3000 | L8: =TBL_FlowersAndDecor[[#Totals],[ФАКТИЧЕСКИЕ]] -> 0 | M8: 2999.97 | N8: 3 | O8: 3 | P8: Цветы и оформление
B9: Фото и видео | C9: =VLOOKUP(TBL_Summary[[#This Row],[КАТЕГОРИЯ]],TBL_RankingData,2,FALSE) -> 2,500.00 ₽ | D9: =IF(VLOOKUP(TBL_Summary[[#This Row],[КАТЕГОРИЯ]],TBL_RankingData,3,FALSE)=0,"",VLOOKUP(TBL_Summary[[#This Row],[КАТЕГОРИЯ]],TBL_RankingData,3,FALSE)) ->  | E9: =IF(OR(TBL_Summary[[#This Row],[ЗАПЛАНИРОВАННЫЕ ЗАТРАТЫ]]="",TBL_Summary[[#This Row],[ФАКТИЧЕСКИЕ ЗАТРАТЫ]]=""),"",TBL_Summary[[#This Row],[ЗАПЛАНИРОВАННЫЕ ЗАТРАТЫ]]-TBL_Summary[[#This Row],[ФАКТИЧЕСКИЕ ЗАТРАТЫ]]) ->  | F9: =TBL_Summary[[#This Row],[ЗАПЛАНИРОВАННЫЕ ЗАТРАТЫ]]/SUM(TBL_Summary[ЗАПЛАНИРОВАННЫЕ ЗАТРАТЫ]) -> 8.4% | J9: Музыка | K9: =TBL_Music[[#Totals],[ЗАПЛАНИРОВАННЫЕ]] -> 1800 | L9: =TBL_Music[[#Totals],[ФАКТИЧЕСКИЕ]] -> 0 | M9: 1799.96 | N9: 5 | O9: 4 | P9: Фото и видео
B10: Музыка | C10: =VLOOKUP(TBL_Summary[[#This Row],[КАТЕГОРИЯ]],TBL_RankingData,2,FALSE) -> 1,800.00 ₽ | D10: =IF(VLOOKUP(TBL_Summary[[#This Row],[КАТЕГОРИЯ]],TBL_RankingData,3,FALSE)=0,"",VLOOKUP(TBL_Summary[[#This Row],[КАТЕГОРИЯ]],TBL_RankingData,3,FALSE)) ->  | E10: =IF(OR(TBL_Summary[[#This Row],[ЗАПЛАНИРОВАННЫЕ ЗАТРАТЫ]]="",TBL_Summary[[#This Row],[ФАКТИЧЕСКИЕ ЗАТРАТЫ]]=""),"",TBL_Summary[[#This Row],[ЗАПЛАНИРОВАННЫЕ ЗАТРАТЫ]]-TBL_Summary[[#This Row],[ФАКТИЧЕСКИЕ ЗАТРАТЫ]]) ->  | F10: =TBL_Summary[[#This Row],[ЗАПЛАНИРОВАННЫЕ ЗАТРАТЫ]]/SUM(TBL_Summary[ЗАПЛАНИРОВАННЫЕ ЗАТРАТЫ]) -> 6.1% | J10: Фото и видео | K10: =TBL_PhotographsAndVideo[[#Totals],[ЗАПЛАНИРОВАННЫЕ]] -> 2500 | L10: =TBL_PhotographsAndVideo[[#Totals],[ФАКТИЧЕСКИЕ]] -> 0 | M10: 2499.95 | N10: 4 | O10: 5 | P10: Музыка
B11: Сувениры и подарки | C11: =VLOOKUP(TBL_Summary[[#This Row],[КАТЕГОРИЯ]],TBL_RankingData,2,FALSE) -> 1,100.00 ₽ | D11: =IF(VLOOKUP(TBL_Summary[[#This Row],[КАТЕГОРИЯ]],TBL_RankingData,3,FALSE)=0,"",VLOOKUP(TBL_Summary[[#This Row],[КАТЕГОРИЯ]],TBL_RankingData,3,FALSE)) ->  | E11: =IF(OR(TBL_Summary[[#This Row],[ЗАПЛАНИРОВАННЫЕ ЗАТРАТЫ]]="",TBL_Summary[[#This Row],[ФАКТИЧЕСКИЕ ЗАТРАТЫ]]=""),"",TBL_Summary[[#This Row],[ЗАПЛАНИРОВАННЫЕ ЗАТРАТЫ]]-TBL_Summary[[#This Row],[ФАКТИЧЕСКИЕ ЗАТРАТЫ]]) ->  | F11: =TBL_Summary[[#This Row],[ЗАПЛАНИРОВАННЫЕ ЗАТРАТЫ]]/SUM(TBL_Summary[ЗАПЛАНИРОВАННЫЕ ЗАТРАТЫ]) -> 3.7% | J11: Сувениры и подарки | K11: =TBL_FavorsAndGifts[[#Totals],[ЗАПЛАНИРОВАННЫЕ]] -> 1100 | L11: =TBL_FavorsAndGifts[[#Totals],[ФАКТИЧЕСКИЕ]] -> 0 | M11: 1099.94 | N11: 6 | O11: 6 | P11: Сувениры и подарки
B12: =P12 -> Обручальные кольца | C12: =VLOOKUP(TBL_Summary[[#This Row],[КАТЕГОРИЯ]],TBL_RankingData,2,FALSE) -> 1,100.00 ₽ | D12: =IF(VLOOKUP(TBL_Summary[[#This Row],[КАТЕГОРИЯ]],TBL_RankingData,3,FALSE)=0,"",VLOOKUP(TBL_Summary[[#This Row],[КАТЕГОРИЯ]],TBL_RankingData,3,FALSE)) ->  | E12: =IF(OR(TBL_Summary[[#This Row],[ЗАПЛАНИРОВАННЫЕ ЗАТРАТЫ]]="",TBL_Summary[[#This Row],[ФАКТИЧЕСКИЕ ЗАТРАТЫ]]=""),"",TBL_Summary[[#This Row],[ЗАПЛАНИРОВАННЫЕ ЗАТРАТЫ]]-TBL_Summary[[#This Row],[ФАКТИЧЕСКИЕ ЗАТРАТЫ]]) ->  | F12: =TBL_Summary[[#This Row],[ЗАПЛАНИРОВАННЫЕ ЗАТРАТЫ]]/SUM(TBL_Summary[ЗАПЛАНИРОВАННЫЕ ЗАТРАТЫ]) -> 3.7% | J12: Церемония | K12: =TBL_Ceremony[[#Totals],[ЗАПЛАНИРОВАННЫЕ]] -> 800 | L12: =TBL_Ceremony[[#Totals],[ФАКТИЧЕСКИЕ]] -> 0 | M12: 799.93 | N12: 8 | O12: 7 | P12: Обручальные кольца
B13: Церемония | C13: =VLOOKUP(TBL_Summary[[#This Row],[КАТЕГОРИЯ]],TBL_RankingData,2,FALSE) -> 800.00 ₽ | D13: =IF(VLOOKUP(TBL_Summary[[#This Row],[КАТЕГОРИЯ]],TBL_RankingData,3,FALSE)=0,"",VLOOKUP(TBL_Summary[[#This Row],[КАТЕГОРИЯ]],TBL_RankingData,3,FALSE)) ->  | E13: =IF(OR(TBL_Summary[[#This Row],[ЗАПЛАНИРОВАННЫЕ ЗАТРАТЫ]]="",TBL_Summary[[#This Row],[ФАКТИЧЕСКИЕ ЗАТРАТЫ]]=""),"",TBL_Summary[[#This Row],[ЗАПЛАНИРОВАННЫЕ ЗАТРАТЫ]]-TBL_Summary[[#This Row],[ФАКТИЧЕСКИЕ ЗАТРАТЫ]]) ->  | F13: =TBL_Summary[[#This Row],[ЗАПЛАНИРОВАННЫЕ ЗАТРАТЫ]]/SUM(TBL_Summary[ЗАПЛАНИРОВАННЫЕ ЗАТРАТЫ]) -> 2.7% | J13: Канцтовары | K13: =TBL_Stationery[[#Totals],[ЗАПЛАНИРОВАННЫЕ]] -> 500 | L13: =TBL_Stationery[[#Totals],[ФАКТИЧЕСКИЕ]] -> 0 | M13: 499.92 | N13: 9 | O13: 8 | P13: Церемония
B14: Канцтовары | C14: =VLOOKUP(TBL_Summary[[#This Row],[КАТЕГОРИЯ]],TBL_RankingData,2,FALSE) -> 500.00 ₽ | D14: =IF(VLOOKUP(TBL_Summary[[#This Row],[КАТЕГОРИЯ]],TBL_RankingData,3,FALSE)=0,"",VLOOKUP(TBL_Summary[[#This Row],[КАТЕГОРИЯ]],TBL_RankingData,3,FALSE)) ->  | E14: =IF(OR(TBL_Summary[[#This Row],[ЗАПЛАНИРОВАННЫЕ ЗАТРАТЫ]]="",TBL_Summary[[#This Row],[ФАКТИЧЕСКИЕ ЗАТРАТЫ]]=""),"",TBL_Summary[[#This Row],[ЗАПЛАНИРОВАННЫЕ ЗАТРАТЫ]]-TBL_Summary[[#This Row],[ФАКТИЧЕСКИЕ ЗАТРАТЫ]]) ->  | F14: =TBL_Summary[[#This Row],[ЗАПЛАНИРОВАННЫЕ ЗАТРАТЫ]]/SUM(TBL_Summary[ЗАПЛАНИРОВАННЫЕ ЗАТРАТЫ]) -> 1.7% | J14: Обручальные кольца | K14: =TBL_WeddingRings[[#Totals],[ЗАПЛАНИРОВАННЫЕ]] -> 1100 | L14: =TBL_WeddingRings[[#Totals],[ФАКТИЧЕСКИЕ]] -> 0 | M14: 1099.91 | N14: 7 | O14: 9 | P14: Канцтовары
B15: Транспорт | C15: =VLOOKUP(TBL_Summary[[#This Row],[КАТЕГОРИЯ]],TBL_RankingData,2,FALSE) -> 450.00 ₽ | D15: =IF(VLOOKUP(TBL_Summary[[#This Row],[КАТЕГОРИЯ]],TBL_RankingData,3,FALSE)=0,"",VLOOKUP(TBL_Summary[[#This Row],[КАТЕГОРИЯ]],TBL_RankingData,3,FALSE)) ->  | E15: =IF(OR(TBL_Summary[[#This Row],[ЗАПЛАНИРОВАННЫЕ ЗАТРАТЫ]]="",TBL_Summary[[#This Row],[ФАКТИЧЕСКИЕ ЗАТРАТЫ]]=""),"",TBL_Summary[[#This Row],[ЗАПЛАНИРОВАННЫЕ ЗАТРАТЫ]]-TBL_Summary[[#This Row],[ФАКТИЧЕСКИЕ ЗАТРАТЫ]]) ->  | F15: =TBL_Summary[[#This Row],[ЗАПЛАНИРОВАННЫЕ ЗАТРАТЫ]]/SUM(TBL_Summary[ЗАПЛАНИРОВАННЫЕ ЗАТРАТЫ]) -> 1.5% | J15: Транспорт | K15: =TBL_Transportation[[#Totals],[ЗАПЛАНИРОВАННЫЕ]] -> 450 | L15: =TBL_Transportation[[#Totals],[ФАКТИЧЕСКИЕ]] -> 0 | M15: 449.9 | N15: 10 | O15: 10 | P15: Транспорт
B16: Итог | C16: =SUBTOTAL(109,TBL_Summary[ЗАПЛАНИРОВАННЫЕ ЗАТРАТЫ]) -> 29,750.00 ₽ | D16: =SUBTOTAL(109,TBL_Summary[ФАКТИЧЕСКИЕ ЗАТРАТЫ]) -> 15,700.00 ₽ | E16: =TBL_Summary[[#Totals],[ЗАПЛАНИРОВАННЫЕ ЗАТРАТЫ]]-TBL_Summary[[#Totals],[ФАКТИЧЕСКИЕ ЗАТРАТЫ]] -> 14,050.00 ₽ | F16: =SUBTOTAL(109,TBL_Summary[% БЮДЖЕТА]) -> 100%

Sheet Сведения о бюджете
B2: СВЕДЕНИЯ О БЮДЖЕТЕ
B4: ПРИЕМ | C4: ЗАПЛАНИРОВАННЫЕ | D4: ФАКТИЧЕСКИЕ | E4: ОТКЛОНЕНИЕ
B5: Место проведения и аренда | C5: 8,000.00 ₽ | D5: 7,800.00 ₽ | E5: =IF(OR(TBL_Reception[[#This Row],[ЗАПЛАНИРОВАННЫЕ]]="",TBL_Reception[[#This Row],[ФАКТИЧЕСКИЕ]]=""),"",TBL_Reception[[#This Row],[ЗАПЛАНИРОВАННЫЕ]]-TBL_Reception[[#This Row],[ФАКТИЧЕСКИЕ]]) -> 200.00 ₽
B6: Питание и обслуживание | C6: 4,000.00 ₽ | D6: 4,200.00 ₽ | E6: =IF(OR(TBL_Reception[[#This Row],[ЗАПЛАНИРОВАННЫЕ]]="",TBL_Reception[[#This Row],[ФАКТИЧЕСКИЕ]]=""),"",TBL_Reception[[#This Row],[ЗАПЛАНИРОВАННЫЕ]]-TBL_Reception[[#This Row],[ФАКТИЧЕСКИЕ]]) -> -200.00 ₽
B7: Напитки | C7: 1,000.00 ₽ | D7: 800.00 ₽ | E7: =IF(OR(TBL_Reception[[#This Row],[ЗАПЛАНИРОВАННЫЕ]]="",TBL_Reception[[#This Row],[ФАКТИЧЕСКИЕ]]=""),"",TBL_Reception[[#This Row],[ЗАПЛАНИРОВАННЫЕ]]-TBL_Reception[[#This Row],[ФАКТИЧЕСКИЕ]]) -> 200.00 ₽
B8: Торт | C8: 1,000.00 ₽ | E8: =IF(OR(TBL_Reception[[#This Row],[ЗАПЛАНИРОВАННЫЕ]]="",TBL_Reception[[#This Row],[ФАКТИЧЕСКИЕ]]=""),"",TBL_Reception[[#This Row],[ЗАПЛАНИРОВАННЫЕ]]-TBL_Reception[[#This Row],[ФАКТИЧЕСКИЕ]]) -> 
B9: Прочие расходы | C9: 500.00 ₽ | E9: =IF(OR(TBL_Reception[[#This Row],[ЗАПЛАНИРОВАННЫЕ]]="",TBL_Reception[[#This Row],[ФАКТИЧЕСКИЕ]]=""),"",TBL_Reception[[#This Row],[ЗАПЛАНИРОВАННЫЕ]]-TBL_Reception[[#This Row],[ФАКТИЧЕСКИЕ]]) -> 
B10: ИТОГО — ПРИЕМ | C10: =SUBTOTAL(109,TBL_Reception[ЗАПЛАНИРОВАННЫЕ]) -> 14,500.00 ₽ | D10: =SUBTOTAL(109,TBL_Reception[ФАКТИЧЕСКИЕ]) -> 12,800.00 ₽ | E10: =TBL_Reception[[#Totals],[ЗАПЛАНИРОВАННЫЕ]]-TBL_Reception[[#Totals],[ФАКТИЧЕСКИЕ]] -> 1,700.00 ₽
B13: ОДЕЖДА | C13: ЗАПЛАНИРОВАННЫЕ | D13: ФАКТИЧЕСКИЕ | E13: ОТКЛОНЕНИЕ
B14: Смокинг, костюм и/или платье | C14: 3,000.00 ₽ | D14: 2,900.00 ₽ | E14: =IF(OR(TBL_Attire[[#This Row],[ЗАПЛАНИРОВАННЫЕ]]="",TBL_Attire[[#This Row],[ФАКТИЧЕСКИЕ]]=""),"",TBL_Attire[[#This Row],[ЗАПЛАНИРОВАННЫЕ]]-TBL_Attire[[#This Row],[ФАКТИЧЕСКИЕ]]) -> 100.00 ₽
B15: Подгонка по фигуре | C15: 100.00 ₽ | E15: =IF(OR(TBL_Attire[[#This Row],[ЗАПЛАНИРОВАННЫЕ]]="",TBL_Attire[[#This Row],[ФАКТИЧЕСКИЕ]]=""),"",TBL_Attire[[#This Row],[ЗАПЛАНИРОВАННЫЕ]]-TBL_Attire[[#This Row],[ФАКТИЧЕСКИЕ]]) -> 
B16: Головное украшение и вуаль | C16: 200.00 ₽ | E16: =IF(OR(TBL_Attire[[#This Row],[ЗАПЛАНИРОВАННЫЕ]]="",TBL_Attire[[#This Row],[ФАКТИЧЕСКИЕ]]=""),"",TBL_Attire[[#This Row],[ЗАПЛАНИРОВАННЫЕ]]-TBL_Attire[[#This Row],[ФАКТИЧЕСКИЕ]]) -> 
B17: Аксессуары | C17: 100.00 ₽ | E17: =IF(OR(TBL_Attire[[#This Row],[ЗАПЛАНИРОВАННЫЕ]]="",TBL_Attire[[#This Row],[ФАКТИЧЕСКИЕ]]=""),"",TBL_Attire[[#This Row],[ЗАПЛАНИРОВАННЫЕ]]-TBL_Attire[[#This Row],[ФАКТИЧЕСКИЕ]]) -> 
B18: Прическа и макияж | C18: 500.00 ₽ | E18: =IF(OR(TBL_Attire[[#This Row],[ЗАПЛАНИРОВАННЫЕ]]="",TBL_Attire[[#This Row],[ФАКТИЧЕСКИЕ]]=""),"",TBL_Attire[[#This Row],[ЗАПЛАНИРОВАННЫЕ]]-TBL_Attire[[#This Row],[ФАКТИЧЕСКИЕ]]) -> 
B19: Прочие расходы | C19: 100.00 ₽ | E19: =IF(OR(TBL_Attire[[#This Row],[ЗАПЛАНИРОВАННЫЕ]]="",TBL_Attire[[#This Row],[ФАКТИЧЕСКИЕ]]=""),"",TBL_Attire[[#This Row],[ЗАПЛАНИРОВАННЫЕ]]-TBL_Attire[[#This Row],[ФАКТИЧЕСКИЕ]]) -> 
B20: ИТОГО — ОДЕЖДА | C20: =SUBTOTAL(109,TBL_Attire[ЗАПЛАНИРОВАННЫЕ]) -> 4,000.00 ₽ | D20: =SUBTOTAL(109,TBL_Attire[ФАКТИЧЕСКИЕ]) -> 2,900.00 ₽ | E20: =TBL_Attire[[#Totals],[ЗАПЛАНИРОВАННЫЕ]]-TBL_Attire[[#Totals],[ФАКТИЧЕСКИЕ]] -> 1,100.00 ₽
B23: ЦВЕТЫ И ОФОРМЛЕНИЕ | C23: ЗАПЛАНИРОВАННЫЕ | D23: ФАКТИЧЕСКИЕ | E23: ОТКЛОНЕНИЕ
B24: Цветочные композиции для церемонии | C24: 1,000.00 ₽ | E24: =IF(OR(TBL_FlowersAndDecor[[#This Row],[ЗАПЛАНИРОВАННЫЕ]]="",TBL_FlowersAndDecor[[#This Row],[ФАКТИЧЕСКИЕ]]=""),"",TBL_FlowersAndDecor[[#This Row],[ЗАПЛАНИРОВАННЫЕ]]-TBL_FlowersAndDecor[[#This Row],[ФАКТИЧЕСКИЕ]]) -> 
B25: Бутоны и корзина девочки с цветами | C25: 500.00 ₽ | E25: =IF(OR(TBL_FlowersAndDecor[[#This Row],[ЗАПЛАНИРОВАННЫЕ]]="",TBL_FlowersAndDecor[[#This Row],[ФАКТИЧЕСКИЕ]]=""),"",TBL_FlowersAndDecor[[#This Row],[ЗАПЛАНИРОВАННЫЕ]]-TBL_FlowersAndDecor[[#This Row],[ФАКТИЧЕСКИЕ]]) -> 
B26: Подушка для колец | C26: 100.00 ₽ | E26: =IF(OR(TBL_FlowersAndDecor[[#This Row],[ЗАПЛАНИРОВАННЫЕ]]="",TBL_FlowersAndDecor[[#This Row],[ФАКТИЧЕСКИЕ]]=""),"",TBL_FlowersAndDecor[[#This Row],[ЗАПЛАНИРОВАННЫЕ]]-TBL_FlowersAndDecor[[#This Row],[ФАКТИЧЕСКИЕ]]) -> 
B27: Букеты | C27: 500.00 ₽ | E27: =IF(OR(TBL_FlowersAndDecor[[#This Row],[ЗАПЛАНИРОВАННЫЕ]]="",TBL_FlowersAndDecor[[#This Row],[ФАКТИЧЕСКИЕ]]=""),"",TBL_FlowersAndDecor[[#This Row],[ЗАПЛАНИРОВАННЫЕ]]-TBL_FlowersAndDecor[[#This Row],[ФАКТИЧЕСКИЕ]]) -> 
B28: Бутоньерки | C28: 100.00 ₽ | E28: =IF(OR(TBL_FlowersAndDecor[[#This Row],[ЗАПЛАНИРОВАННЫЕ]]="",TBL_FlowersAndDecor[[#This Row],[ФАКТИЧЕСКИЕ]]=""),"",TBL_FlowersAndDecor[[#This Row],[ЗАПЛАНИРОВАННЫЕ]]-TBL_FlowersAndDecor[[#This Row],[ФАКТИЧЕСКИЕ]]) -> 
B29: Цветочные браслеты | C29: 200.00 ₽ | E29: =IF(OR(TBL_FlowersAndDecor[[#This Row],[ЗАПЛАНИРОВАННЫЕ]]="",TBL_FlowersAndDecor[[#This Row],[ФАКТИЧЕСКИЕ]]=""),"",TBL_FlowersAndDecor[[#This Row],[ЗАПЛАНИРОВАННЫЕ]]-TBL_FlowersAndDecor[[#This Row],[ФАКТИЧЕСКИЕ]]) -> 
B30: Оформление приема | C30: 300.00 ₽ | E30: =IF(OR(TBL_FlowersAndDecor[[#This Row],[ЗАПЛАНИРОВАННЫЕ]]="",TBL_FlowersAndDecor[[#This Row],[ФАКТИЧЕСКИЕ]]=""),"",TBL_FlowersAndDecor[[#This Row],[ЗАПЛАНИРОВАННЫЕ]]-TBL_FlowersAndDecor[[#This Row],[ФАКТИЧЕСКИЕ]]) -> 
B31: Освещение | C31: 200.00 ₽ | E31: =IF(OR(TBL_FlowersAndDecor[[#This Row],[ЗАПЛАНИРОВАННЫЕ]]="",TBL_FlowersAndDecor[[#This Row],[ФАКТИЧЕСКИЕ]]=""),"",TBL_FlowersAndDecor[[#This Row],[ЗАПЛАНИРОВАННЫЕ]]-TBL_FlowersAndDecor[[#This Row],[ФАКТИЧЕСКИЕ]]) -> 
B32: Прочие расходы | C32: 100.00 ₽ | E32: =IF(OR(TBL_FlowersAndDecor[[#This Row],[ЗАПЛАНИРОВАННЫЕ]]="",TBL_FlowersAndDecor[[#This Row],[ФАКТИЧЕСКИЕ]]=""),"",TBL_FlowersAndDecor[[#This Row],[ЗАПЛАНИРОВАННЫЕ]]-TBL_FlowersAndDecor[[#This Row],[ФАКТИЧЕСКИЕ]]) -> 
B33: ИТОГО — ЦВЕТЫ И ОФОРМЛЕНИЕ | C33: =SUBTOTAL(109,TBL_FlowersAndDecor[ЗАПЛАНИРОВАННЫЕ]) -> 3,000.00 ₽ | D33: =SUBTOTAL(109,TBL_FlowersAndDecor[ФАКТИЧЕСКИЕ]) -> 0.00 ₽ | E33: =TBL_FlowersAndDecor[[#Totals],[ЗАПЛАНИРОВАННЫЕ]]-TBL_FlowersAndDecor[[#Totals],[ФАКТИЧЕСКИЕ]] -> 3,000.00 ₽
B36: МУЗЫКА | C36: ЗАПЛАНИРОВАННЫЕ | D36: ФАКТИЧЕСКИЕ | E36: ОТКЛОНЕНИЕ
B37: Музыканты церемонии | C37: 700.00 ₽ | E37: =IF(OR(TBL_Music[[#This Row],[ЗАПЛАНИРОВАННЫЕ]]="",TBL_Music[[#This Row],[ФАКТИЧЕСКИЕ]]=""),"",TBL_Music[[#This Row],[ЗАПЛАНИРОВАННЫЕ]]-TBL_Music[[#This Row],[ФАКТИЧЕСКИЕ]]) -> 
B38: Музыканты для коктейля | C38: 300.00 ₽ | E38: =IF(OR(TBL_Music[[#This Row],[ЗАПЛАНИРОВАННЫЕ]]="",TBL_Music[[#This Row],[ФАКТИЧЕСКИЕ]]=""),"",TBL_Music[[#This Row],[ЗАПЛАНИРОВАННЫЕ]]-TBL_Music[[#This Row],[ФАКТИЧЕСКИЕ]]) -> 
B39: Группа, диджей или развлечения на приеме | C39: 200.00 ₽ | E39: =IF(OR(TBL_Music[[#This Row],[ЗАПЛАНИРОВАННЫЕ]]="",TBL_Music[[#This Row],[ФАКТИЧЕСКИЕ]]=""),"",TBL_Music[[#This Row],[ЗАПЛАНИРОВАННЫЕ]]-TBL_Music[[#This Row],[ФАКТИЧЕСКИЕ]]) -> 
B40: Звуковая система или аренда танцевальной площадки | C40: 400.00 ₽ | E40: =IF(OR(TBL_Music[[#This Row],[ЗАПЛАНИРОВАННЫЕ]]="",TBL_Music[[#This Row],[ФАКТИЧЕСКИЕ]]=""),"",TBL_Music[[#This Row],[ЗАПЛАНИРОВАННЫЕ]]-TBL_Music[[#This Row],[ФАКТИЧЕСКИЕ]]) -> 
B41: Прочие расходы | C41: 200.00 ₽ | E41: =IF(OR(TBL_Music[[#This Row],[ЗАПЛАНИРОВАННЫЕ]]="",TBL_Music[[#This Row],[ФАКТИЧЕСКИЕ]]=""),"",TBL_Music[[#This Row],[ЗАПЛАНИРОВАННЫЕ]]-TBL_Music[[#This Row],[ФАКТИЧЕСКИЕ]]) -> 
B42: ИТОГО — МУЗЫКА | C42: =SUBTOTAL(109,TBL_Music[ЗАПЛАНИРОВАННЫЕ]) -> 1,800.00 ₽ | D42: =SUBTOTAL(109,TBL_Music[ФАКТИЧЕСКИЕ]) -> 0.00 ₽ | E42: =TBL_Music[[#Totals],[ЗАПЛАНИРОВАННЫЕ]]-TBL_Music[[#Totals],[ФАКТИЧЕСКИЕ]] -> 1,800.00 ₽
B45: ФОТОГРАФИИ И ВИДЕО | C45: ЗАПЛАНИРОВАННЫЕ | D45: ФАКТИЧЕСКИЕ | E45: ОТКЛОНЕНИЕ
B46: Фотографии | C46: 1,000.00 ₽ | E46: =IF(OR(TBL_PhotographsAndVideo[[#This Row],[ЗАПЛАНИРОВАННЫЕ]]="",TBL_PhotographsAndVideo[[#This Row],[ФАКТИЧЕСКИЕ]]=""),"",TBL_PhotographsAndVideo[[#This Row],[ЗАПЛАНИРОВАННЫЕ]]-TBL_PhotographsAndVideo[[#This Row],[ФАКТИЧЕСКИЕ]]) -> 
B47: Видео | C47: 800.00 ₽ | E47: =IF(OR(TBL_PhotographsAndVideo[[#This Row],[ЗАПЛАНИРОВАННЫЕ]]="",TBL_PhotographsAndVideo[[#This Row],[ФАКТИЧЕСКИЕ]]=""),"",TBL_PhotographsAndVideo[[#This Row],[ЗАПЛАНИРОВАННЫЕ]]-TBL_PhotographsAndVideo[[#This Row],[ФАКТИЧЕСКИЕ]]) -> 
B48: Дополнительные печатные фотографии и альбомы | C48: 500.00 ₽ | E48: =IF(OR(TBL_PhotographsAndVideo[[#This Row],[ЗАПЛАНИРОВАННЫЕ]]="",TBL_PhotographsAndVideo[[#This Row],[ФАКТИЧЕСКИЕ]]=""),"",TBL_PhotographsAndVideo[[#This Row],[ЗАПЛАНИРОВАННЫЕ]]-TBL_PhotographsAndVideo[[#This Row],[ФАКТИЧЕСКИЕ]]) -> 
B49: Прочие расходы | C49: 200.00 ₽ | E49: =IF(OR(TBL_PhotographsAndVideo[[#This Row],[ЗАПЛАНИРОВАННЫЕ]]="",TBL_PhotographsAndVideo[[#This Row],[ФАКТИЧЕСКИЕ]]=""),"",TBL_PhotographsAndVideo[[#This Row],[ЗАПЛАНИРОВАННЫЕ]]-TBL_PhotographsAndVideo[[#This Row],[ФАКТИЧЕСКИЕ]]) -> 
B50: ИТОГО — ФОТОГРАФИИ И ВИДЕО | C50: =SUBTOTAL(109,TBL_PhotographsAndVideo[ЗАПЛАНИРОВАННЫЕ]) -> 2,500.00 ₽ | D50: =SUBTOTAL(109,TBL_PhotographsAndVideo[ФАКТИЧЕСКИЕ]) -> 0.00 ₽ | E50: =TBL_PhotographsAndVideo[[#Totals],[ЗАПЛАНИРОВАННЫЕ]]-TBL_PhotographsAndVideo[[#Totals],[ФАКТИЧЕСКИЕ]] -> 2,500.00 ₽
B53: СУВЕНИРЫ И ПОДАРКИ | C53: ЗАПЛАНИРОВАННЫЕ | D53: ФАКТИЧЕСКИЕ | E53: ОТКЛОНЕНИЕ
B54: Приветственные подарки | C54: 700.00 ₽ | E54: =IF(OR(TBL_FavorsAndGifts[[#This Row],[ЗАПЛАНИРОВАННЫЕ]]="",TBL_FavorsAndGifts[[#This Row],[ФАКТИЧЕСКИЕ]]=""),"",TBL_FavorsAndGifts[[#This Row],[ЗАПЛАНИРОВАННЫЕ]]-TBL_FavorsAndGifts[[#This Row],[ФАКТИЧЕСКИЕ]]) -> 
B55: Праздничные подарки | C55: 200.00 ₽ | E55: =IF(OR(TBL_FavorsAndGifts[[#This Row],[ЗАПЛАНИРОВАННЫЕ]]="",TBL_FavorsAndGifts[[#This Row],[ФАКТИЧЕСКИЕ]]=""),"",TBL_FavorsAndGifts[[#This Row],[ЗАПЛАНИРОВАННЫЕ]]-TBL_FavorsAndGifts[[#This Row],[ФАКТИЧЕСКИЕ]]) -> 
B56: Прочие расходы | C56: 200.00 ₽ | E56: =IF(OR(TBL_FavorsAndGifts[[#This Row],[ЗАПЛАНИРОВАННЫЕ]]="",TBL_FavorsAndGifts[[#This Row],[ФАКТИЧЕСКИЕ]]=""),"",TBL_FavorsAndGifts[[#This Row],[ЗАПЛАНИРОВАННЫЕ]]-TBL_FavorsAndGifts[[#This Row],[ФАКТИЧЕСКИЕ]]) -> 
B57: ИТОГО — СУВЕНИРЫ И ПОДАРКИ | C57: =SUBTOTAL(109,TBL_FavorsAndGifts[ЗАПЛАНИРОВАННЫЕ]) -> 1,100.00 ₽ | D57: =SUBTOTAL(109,TBL_FavorsAndGifts[ФАКТИЧЕСКИЕ]) -> 0.00 ₽ | E57: =TBL_FavorsAndGifts[[#Totals],[ЗАПЛАНИРОВАННЫЕ]]-TBL_FavorsAndGifts[[#Totals],[ФАКТИЧЕСКИЕ]] -> 1,100.00 ₽
B60: ЦЕРЕМОНИЯ | C60: ЗАПЛАНИРОВАННЫЕ | D60: ФАКТИЧЕСКИЕ | E60: ОТКЛОНЕНИЕ
B61: Оплата места проведения | C61: 500.00 ₽ | E61: =IF(OR(TBL_Ceremony[[#This Row],[ЗАПЛАНИРОВАННЫЕ]]="",TBL_Ceremony[[#This Row],[ФАКТИЧЕСКИЕ]]=""),"",TBL_Ceremony[[#This Row],[ЗАПЛАНИРОВАННЫЕ]]-TBL_Ceremony[[#This Row],[ФАКТИЧЕСКИЕ]]) -> 
B62: Оплата официантов или церковные пожертвования | C62: 200.00 ₽ | E62: =IF(OR(TBL_Ceremony[[#This Row],[ЗАПЛАНИРОВАННЫЕ]]="",TBL_Ceremony[[#This Row],[ФАКТИЧЕСКИЕ]]=""),"",TBL_Ceremony[[#This Row],[ЗАПЛАНИРОВАННЫЕ]]-TBL_Ceremony[[#This Row],[ФАКТИЧЕСКИЕ]]) -> 
B63: Прочие расходы | C63: 100.00 ₽ | E63: =IF(OR(TBL_Ceremony[[#This Row],[ЗАПЛАНИРОВАННЫЕ]]="",TBL_Ceremony[[#This Row],[ФАКТИЧЕСКИЕ]]=""),"",TBL_Ceremony[[#This Row],[ЗАПЛАНИРОВАННЫЕ]]-TBL_Ceremony[[#This Row],[ФАКТИЧЕСКИЕ]]) -> 
B64: ИТОГО — ЦЕРЕМОНИЯ | C64: =SUBTOTAL(109,TBL_Ceremony[ЗАПЛАНИРОВАННЫЕ]) -> 800.00 ₽ | D64: =SUBTOTAL(109,TBL_Ceremony[ФАКТИЧЕСКИЕ]) -> 0.00 ₽ | E64: =TBL_Ceremony[[#Totals],[ЗАПЛАНИРОВАННЫЕ]]-TBL_Ceremony[[#Totals],[ФАКТИЧЕСКИЕ]] -> 800.00 ₽
B67: КАНЦТОВАРЫ | C67: ЗАПЛАНИРОВАННЫЕ | D67: ФАКТИЧЕСКИЕ | E67: ОТКЛОНЕНИЕ
B68: Пригласительные открытки | C68: 50.00 ₽ | E68: =IF(OR(TBL_Stationery[[#This Row],[ЗАПЛАНИРОВАННЫЕ]]="",TBL_Stationery[[#This Row],[ФАКТИЧЕСКИЕ]]=""),"",TBL_Stationery[[#This Row],[ЗАПЛАНИРОВАННЫЕ]]-TBL_Stationery[[#This Row],[ФАКТИЧЕСКИЕ]]) -> 
B69: Приглашения и подтверждения | C69: 100.00 ₽ | E69: =IF(OR(TBL_Stationery[[#This Row],[ЗАПЛАНИРОВАННЫЕ]]="",TBL_Stationery[[#This Row],[ФАКТИЧЕСКИЕ]]=""),"",TBL_Stationery[[#This Row],[ЗАПЛАНИРОВАННЫЕ]]-TBL_Stationery[[#This Row],[ФАКТИЧЕСКИЕ]]) -> 
B70: Программы | C70: 50.00 ₽ | E70: =IF(OR(TBL_Stationery[[#This Row],[ЗАПЛАНИРОВАННЫЕ]]="",TBL_Stationery[[#This Row],[ФАКТИЧЕСКИЕ]]=""),"",TBL_Stationery[[#This Row],[ЗАПЛАНИРОВАННЫЕ]]-TBL_Stationery[[#This Row],[ФАКТИЧЕСКИЕ]]) -> 
B71: Карточки рассадки | C71: 50.00 ₽ | E71: =IF(OR(TBL_Stationery[[#This Row],[ЗАПЛАНИРОВАННЫЕ]]="",TBL_Stationery[[#This Row],[ФАКТИЧЕСКИЕ]]=""),"",TBL_Stationery[[#This Row],[ЗАПЛАНИРОВАННЫЕ]]-TBL_Stationery[[#This Row],[ФАКТИЧЕСКИЕ]]) -> 
B72: Карточки меню | C72: 50.00 ₽ | E72: =IF(OR(TBL_Stationery[[#This Row],[ЗАПЛАНИРОВАННЫЕ]]="",TBL_Stationery[[#This Row],[ФАКТИЧЕСКИЕ]]=""),"",TBL_Stationery[[#This Row],[ЗАПЛАНИРОВАННЫЕ]]-TBL_Stationery[[#This Row],[ФАКТИЧЕСКИЕ]]) -> 
B73: Благодарственные письма | C73: 50.00 ₽ | E73: =IF(OR(TBL_Stationery[[#This Row],[ЗАПЛАНИРОВАННЫЕ]]="",TBL_Stationery[[#This Row],[ФАКТИЧЕСКИЕ]]=""),"",TBL_Stationery[[#This Row],[ЗАПЛАНИРОВАННЫЕ]]-TBL_Stationery[[#This Row],[ФАКТИЧЕСКИЕ]]) -> 
B74: Почтовые расходы | C74: 50.00 ₽ | E74: =IF(OR(TBL_Stationery[[#This Row],[ЗАПЛАНИРОВАННЫЕ]]="",TBL_Stationery[[#This Row],[ФАКТИЧЕСКИЕ]]=""),"",TBL_Stationery[[#This Row],[ЗАПЛАНИРОВАННЫЕ]]-TBL_Stationery[[#This Row],[ФАКТИЧЕСКИЕ]]) -> 
B75: Прочие расходы | C75: 100.00 ₽ | E75: =IF(OR(TBL_Stationery[[#This Row],[ЗАПЛАНИРОВАННЫЕ]]="",TBL_Stationery[[#This Row],[ФАКТИЧЕСКИЕ]]=""),"",TBL_Stationery[[#This Row],[ЗАПЛАНИРОВАННЫЕ]]-TBL_Stationery[[#This Row],[ФАКТИЧЕСКИЕ]]) -> 
B76: ИТОГО — КАНЦТОВАРЫ | C76: =SUBTOTAL(109,TBL_Stationery[ЗАПЛАНИРОВАННЫЕ]) -> 500.00 ₽ | D76: =SUBTOTAL(109,TBL_Stationery[ФАКТИЧЕСКИЕ]) -> 0.00 ₽ | E76: =TBL_Stationery[[#Totals],[ЗАПЛАНИРОВАННЫЕ]]-TBL_Stationery[[#Totals],[ФАКТИЧЕСКИЕ]] -> 500.00 ₽
B79: ОБРУЧАЛЬНЫЕ КОЛЬЦА | C79: ЗАПЛАНИРОВАННЫЕ | D79: ФАКТИЧЕСКИЕ | E79: ОТКЛОНЕНИЕ
B80: Обручальные кольца | C80: 1,000.00 ₽ | E80: =IF(OR(TBL_WeddingRings[[#This Row],[ЗАПЛАНИРОВАННЫЕ]]="",TBL_WeddingRings[[#This Row],[ФАКТИЧЕСКИЕ]]=""),"",TBL_WeddingRings[[#This Row],[ЗАПЛАНИРОВАННЫЕ]]-TBL_WeddingRings[[#This Row],[ФАКТИЧЕСКИЕ]]) -> 
B81: Аксессуары для колец | C81: 100.00 ₽ | E81: =IF(OR(TBL_WeddingRings[[#This Row],[ЗАПЛАНИРОВАННЫЕ]]="",TBL_WeddingRings[[#This Row],[ФАКТИЧЕСКИЕ]]=""),"",TBL_WeddingRings[[#This Row],[ЗАПЛАНИРОВАННЫЕ]]-TBL_WeddingRings[[#This Row],[ФАКТИЧЕСКИЕ]]) -> 
B82: ИТОГО — ОБРУЧАЛЬНЫЕ КОЛЬЦА | C82: =SUBTOTAL(109,TBL_WeddingRings[ЗАПЛАНИРОВАННЫЕ]) -> 1,100.00 ₽ | D82: =SUBTOTAL(109,TBL_WeddingRings[ФАКТИЧЕСКИЕ]) -> 0.00 ₽ | E82: =TBL_WeddingRings[[#Totals],[ЗАПЛАНИРОВАННЫЕ]]-TBL_WeddingRings[[#Totals],[ФАКТИЧЕСКИЕ]] -> 1,100.00 ₽
B85: ТРАНСПОРТ | C85: ЗАПЛАНИРОВАННЫЕ | D85: ФАКТИЧЕСКИЕ | E85: ОТКЛОНЕНИЕ
B86: Аренда главного автомобиля | C86: 100.00 ₽ | E86: =IF(OR(TBL_Transportation[[#This Row],[ЗАПЛАНИРОВАННЫЕ]]="",TBL_Transportation[[#This Row],[ФАКТИЧЕСКИЕ]]=""),"",TBL_Transportation[[#This Row],[ЗАПЛАНИРОВАННЫЕ]]-TBL_Transportation[[#This Row],[ФАКТИЧЕСКИЕ]]) -> 
B87: Аренда автомобилей для гостей | C87: 100.00 ₽ | E87: =IF(OR(TBL_Transportation[[#This Row],[ЗАПЛАНИРОВАННЫЕ]]="",TBL_Transportation[[#This Row],[ФАКТИЧЕСКИЕ]]=""),"",TBL_Transportation[[#This Row],[ЗАПЛАНИРОВАННЫЕ]]-TBL_Transportation[[#This Row],[ФАКТИЧЕСКИЕ]]) -> 
B88: Транспорт для приезжих гостей | C88: 100.00 ₽ | E88: =IF(OR(TBL_Transportation[[#This Row],[ЗАПЛАНИРОВАННЫЕ]]="",TBL_Transportation[[#This Row],[ФАКТИЧЕСКИЕ]]=""),"",TBL_Transportation[[#This Row],[ЗАПЛАНИРОВАННЫЕ]]-TBL_Transportation[[#This Row],[ФАКТИЧЕСКИЕ]]) -> 
B89: Парковка | C89: 50.00 ₽ | E89: =IF(OR(TBL_Transportation[[#This Row],[ЗАПЛАНИРОВАННЫЕ]]="",TBL_Transportation[[#This Row],[ФАКТИЧЕСКИЕ]]=""),"",TBL_Transportation[[#This Row],[ЗАПЛАНИРОВАННЫЕ]]-TBL_Transportation[[#This Row],[ФАКТИЧЕСКИЕ]]) -> 
B90: Прочие расходы | C90: 100.00 ₽ | E90: =IF(OR(TBL_Transportation[[#This Row],[ЗАПЛАНИРОВАННЫЕ]]="",TBL_Transportation[[#This Row],[ФАКТИЧЕСКИЕ]]=""),"",TBL_Transportation[[#This Row],[ЗАПЛАНИРОВАННЫЕ]]-TBL_Transportation[[#This Row],[ФАКТИЧЕСКИЕ]]) -> 
B91: ИТОГО — ТРАНСПОРТ | C91: =SUBTOTAL(109,TBL_Transportation[ЗАПЛАНИРОВАННЫЕ]) -> 450.00 ₽ | D91: =SUBTOTAL(109,TBL_Transportation[ФАКТИЧЕСКИЕ]) -> 0.00 ₽ | E91: =TBL_Transportation[[#Totals],[ЗАПЛАНИРОВАННЫЕ]]-TBL_Transportation[[#Totals],[ФАКТИЧЕСКИЕ]] -> 450.00 ₽
